fUSD/lending_fUSD_20250926
["ID","MTS","AMOUNT","RATE_DAILY","PERIOD"]
[387782196,1758855044273,-151.0,0.00019999,2]
[387782198,1758855044283,-176.139527,0.00019999,2]
[387782200,1758855044292,-1444.708406,0.00019999,2]
[387782202,1758855044302,-151.0,0.00019999,2]
[387782204,1758855044318,-1444.708406,0.00019999,2]
[387782206,1758855044329,-151.0,0.00019999,2]
[387782208,1758855044338,-151.0,0.00019999,2]
[387782210,1758855044347,-151.0,0.00019999,2]
[387782212,1758855044357,-1444.708406,0.00019999,2]
[387782214,1758855044366,-151.0,0.00019999,2]
[387782215,1758855044375,-1444.708406,0.00019999,2]
[387782216,1758855044385,-151.0,0.00019999,2]
[387782217,1758855044395,-152.024899,0.00019999,2]
[387782218,1758855044404,-151.0,0.00019999,2]
[387782219,1758855044413,-151.0,0.00019999,2]
[387782220,1758855044423,-151.0,0.00019999,2]
[387782221,1758855044432,-1317.562461,0.00019999,2]
[387782222,1758855044441,-295.948455,0.00019999,2]
[387782223,1758855044451,-151.0,0.00019999,2]
[387782224,1758855044668,-151.0,0.00019999,2]
[387782225,1758855044678,-1317.562461,0.00019999,2]
[387782226,1758855044687,-151.0,0.00019999,2]
[387782227,1758855044697,-151.0,0.00019999,2]
[387782228,1758855044706,-1317.562461,0.00019999,2]
[387782229,1758855044717,-151.0,0.00019999,2]
[387782230,1758855044727,-1317.562461,0.00019999,2]
[387782231,1758855044737,-151.0,0.00019999,2]
[387782232,1758855044747,-151.0,0.00019999,2]
[387782233,1758855044756,-151.0,0.00019999,2]
[387782234,1758855044767,-151.0,0.00019999,2]
[387782235,1758855044776,-151.0,0.00019999,2]
[387782236,1758855044786,-151.0,0.00019999,2]
[387782237,1758855044795,-226.066765,0.00019999,2]
[387782238,1758855044804,-152.375547,0.00019999,2]
[387782239,1758855044814,-184.744327,0.00019999,2]
[387782240,1758855044823,-629.737945,0.00019999,2]
[387782241,1758855044833,-184.744327,0.00019999,2]
[387782242,1758855044842,-629.737945,0.00019999,2]
[387782243,1758855044852,-184.744327,0.00019999,2]
[387782244,1758855044861,-629.737945,0.00019999,2]
[387782245,1758855044870,-184.744327,0.00019999,2]
[387782246,1758855044880,-629.737945,0.00019999,2]
[387782247,1758855044889,-164.940957,0.00019999,2]
[387782248,1758855044899,-164.940957,0.00019999,2]
[387782249,1758855044912,-151.0,0.00019999,2]
[387782250,1758855044921,-164.940957,0.00019999,2]
[387782251,1758855044931,-164.940957,0.00019999,2]
[387782252,1758855044940,-151.0,0.00019999,2]
[387782253,1758855044951,-154.601343,0.00019999,2]
[387782254,1758855044961,-151.0,0.00019999,2]
[387782255,1758855044970,-400.612806,0.00019999,2]
[387782256,1758855044983,-400.612806,0.00019999,2]
[387782257,1758855044993,-400.612806,0.00019999,2]
[387782258,1758855045003,-400.612806,0.00019999,2]
[387782259,1758855045012,-151.0,0.00019999,2]
[387782260,1758855045022,-151.0,0.00019999,2]
[387782261,1758855045031,-151.0,0.00019999,2]
[387782262,1758855045040,-151.0,0.00019999,2]
[387782263,1758855045050,-151.0,0.00019999,2]
[387782264,1758855045059,-151.0,0.00019999,2]
[387782265,1758855045070,-250.23574847,0.00019999,2]
[387782266,1758855045080,-151.0,0.00019999,2]
[387782267,1758855045089,-500.0,0.00019999,2]
[387782268,1758855045099,-500.0,0.00019999,2]
[387782269,1758855045108,-500.0,0.00019999,2]
[387782270,1758855045118,-151.0,0.00019999,2]
[387782271,1758855045128,-2443.755944,0.00019999,2]
[387782272,1758855045137,-151.0,0.00019999,2]
[387782273,1758855045147,-2443.755944,0.00019999,2]
[387782274,1758855045157,-158.06805117,0.00019999,2]
[387782275,1758855045166,-713.207655,0.00019999,2]
[387782276,1758855045175,-2443.755944,0.00019999,2]
[387782277,1758855045184,-150.0,0.00019999,2]
[387782278,1758855045193,-151.0,0.00019999,2]
[387782279,1758855045202,-151.0,0.00019999,2]
[387782280,1758855045211,-151.0,0.00019999,2]
[387782281,1758855045220,-713.207655,0.00019999,2]
[387782282,1758855045230,-150.0,0.00019999,2]
[387782283,1758855045239,-2443.755944,0.00019999,2]
[387782284,1758855045251,-151.0,0.00019999,2]
[387782285,1758855045261,-151.0,0.00019999,2]
[387782286,1758855045270,-151.0,0.00019999,2]
[387782287,1758855045279,-713.207655,0.00019999,2]
[387782288,1758855045288,-151.0,0.00019999,2]
[387782289,1758855045298,-151.0,0.00019999,2]
[387782290,1758855045307,-166.617203,0.00019999,2]
[387782291,1758855045316,-713.207655,0.00019999,2]
[387782292,1758855045326,-151.0,0.00019999,2]
[387782293,1758855045335,-166.617203,0.00019999,2]
[387782294,1758855045345,-151.0,0.00019999,2]
[387782295,1758855045354,-166.617203,0.00019999,2]
[387782296,1758855045363,-151.0,0.00019999,2]
[387782297,1758855045373,-151.0,0.00019999,2]
[387782298,1758855045382,-166.617203,0.00019999,2]
[387782299,1758855045392,-476.53613,0.00019999,2]
[387782300,1758855045401,-151.0,0.00019999,2]
[387782301,1758855045411,-476.53613,0.00019999,2]
[387782302,1758855045420,-476.53613,0.00019999,2]
[387782303,1758855045430,-476.53613,0.00019999,2]
[387782304,1758855045439,-151.374898,0.00019999,2]
[387782305,1758855045449,-813.33085,0.00019999,2]
[387782306,1758855045459,-1000.0,0.00019999,2]
[387782307,1758855045469,-813.33085,0.00019999,2]
[387782308,1758855045478,-973.164744,0.00019999,2]
[387782309,1758855045487,-813.33085,0.00019999,2]
[387782310,1758855045497,-973.164744,0.00019999,2]
[387782311,1758855045506,-151.0,0.00019999,2]
[387782312,1758855045517,-813.33085,0.00019999,2]
[387782313,1758855045526,-973.164744,0.00019999,2]
[387782314,1758855045536,-151.0,0.00019999,2]
[387782315,1758855045545,-973.164744,0.00019999,2]
[387782316,1758855045555,-158.778067,0.00019999,2]
[387782317,1758855045564,-151.0,0.00019999,2]
[387782318,1758855045573,-151.0,0.00019999,2]
[387782319,1758855045583,-158.778067,0.00019999,2]
[387782320,1758855045592,-151.0,0.00019999,2]
[387782321,1758855045601,-158.778067,0.00019999,2]
[387782322,1758855045611,-1920.878146,0.00019999,2]
[387782323,1758855045621,-158.778067,0.00019999,2]
[387782324,1758855045630,-151.336479,0.00019999,2]
[387782325,1758855045640,-1920.878146,0.00019999,2]
[387782326,1758855045649,-151.0,0.00019999,2]
[387782327,1758855045659,-1920.878146,0.00019999,2]
[387782328,1758855045669,-151.0,0.00019999,2]
[387782329,1758855045682,-151.0,0.00019999,2]
[387782330,1758855045692,-1920.878146,0.00019999,2]
[387782331,1758855045702,-150.0,0.00019999,2]
[387782332,1758855045712,-151.0,0.00019999,2]
[387782333,1758855045721,-151.433819,0.00019999,2]
[387782334,1758855045731,-151.0,0.00019999,2]
[387782335,1758855045741,-151.0,0.00019999,2]
[387782336,1758855045751,-151.0,0.00019999,2]
[387782337,1758855045761,-151.0,0.00019999,2]
[387782338,1758855045771,-151.0,0.00019999,2]
[387782339,1758855045780,-254.96365471,0.00019999,2]
[387782340,1758855045790,-151.0,0.00019999,2]
[387782341,1758855045800,-153.02260752,0.00019999,2]
[387782342,1758855045809,-151.0,0.00019999,2]
[387782343,1758855045819,-151.0,0.00019999,2]
[387782344,1758855045828,-151.0,0.00019999,2]
[387782345,1758855045838,-151.0,0.00019999,2]
[387782346,1758855045847,-217.097512,0.00019999,2]
[387782347,1758855045856,-150.0,0.00019999,2]
[387782348,1758855045866,-151.0,0.00019999,2]
[387782349,1758855045875,-151.0,0.00019999,2]
[387782350,1758855045885,-151.0,0.00019999,2]
[387782351,1758855045895,-151.0,0.00019999,2]
[387782352,1758855045909,-1736.477732,0.00019999,2]
[387782353,1758855045919,-217.097512,0.00019999,2]
[387782354,1758855045929,-155.84655773,0.00019999,2]
[387782355,1758855045939,-4184.0,0.00019999,2]
[387782356,1758855045950,-36148.90052249,0.0002,2]
[387782357,1758855045960,-105878.93073898,0.0002,2]
[387782364,1758855046840,-207.6831142,0.000199,3]
[387782365,1758855046849,-153.629711,0.00019999,2]
[387782366,1758855046858,-1736.477732,0.00019999,2]
[387782367,1758855046868,-151.0,0.00019999,2]
[387782368,1758855046877,-217.097512,0.00019999,2]
[387782369,1758855046887,-1736.477732,0.00019999,2]
[387782370,1758855046896,-217.097512,0.00019999,2]
[387782371,1758855046909,-1736.477732,0.00019999,2]
[387782372,1758855046918,-1013.10758691,0.0002,2]
[387782374,1758855047015,-484.052064,0.0002,2]
[387782387,1758855850073,-150.0,0.00018804,7]
[387782388,1758855850598,-150.0,0.00018929,2]
[387782389,1758855850646,-200.0,0.00018929,2]
[387782390,1758855859812,-500.0,0.00018929,2]
[387782391,1758855867667,-565.38260902,0.00018929,2]
[387782392,1758855875954,-575.33,0.00018929,2]
[387782393,1758855908666,226.16907171,0.00018,2]
[387782394,1758855911013,150.0,0.00018,2]
[387782395,1758855911153,155.01070575,0.00018,2]
[387782396,1758855914119,235.83635344,0.00018,2]
[387782397,1758855917504,247.74614187,0.00018,2]
[387782398,1758855917581,158.06010187,0.00018,2]
[387782399,1758855917655,151.9726839,0.00018,2]
[387782400,1758855921121,151.93968065,0.00018,2]
[387782401,1758855924513,153.33942081,0.00018,2]
[387782402,1758855929107,289.47822011,0.00018,2]
[387782403,1758855930221,173.19125736,0.00018,2]
[387782404,1758855931873,150.0,0.00018,2]
[387782409,1758856127983,-178.66699279,0.00018756,2]
[387782410,1758856132753,-68.57300721,0.00018756,2]
[387782416,1758856190006,-976.39,0.000189,2]
[387782417,1758856197508,-194.11527843,0.000189,2]
[387782420,1758856231586,-15.49472157,0.000189,2]
[387782421,1758856231596,-666.0,0.00019055,3]
[387782422,1758856231606,-721.54,0.00019062,2]
[387782423,1758856231615,-1000.0,0.00019062,2]
[387782424,1758856231625,-1200.0,0.00019093,2]
[387782425,1758856231635,-820.48825533,0.00019094,2]
[387782426,1758856231647,-852.68973297,0.00019094,2]
[387782427,1758856231691,-7878.98987717,0.00019094,2]
[387782428,1758856231701,-151.0,0.00019094,2]
[387782429,1758856231710,-3065.77,0.00019106,2]
[387782430,1758856231720,-2085.32,0.00019129,2]
[387782431,1758856231731,-500.0,0.00019145,2]
[387782432,1758856231741,-500.0,0.00019145,2]
[387782433,1758856231751,-500.0,0.00019145,2]
[387782434,1758856231760,-500.0,0.00019145,2]
[387782435,1758856231770,-500.0,0.00019145,2]
[387782436,1758856231779,-500.0,0.00019145,2]
[387782437,1758856231788,-500.0,0.00019145,2]
[387782438,1758856231797,-500.0,0.00019145,2]
[387782439,1758856231807,-500.0,0.00019145,2]
[387782440,1758856231816,-500.0,0.00019145,2]
[387782441,1758856231826,-500.0,0.00019145,2]
[387782442,1758856231835,-500.0,0.00019145,2]
[387782443,1758856231845,-566.6526764,0.00019145,2]
[387782444,1758856231855,-500.0,0.00019145,2]
[387782445,1758856231864,-1694.07377886,0.00019149,2]
[387782446,1758856231877,-522.04790989,0.00019149,2]
[387782447,1758856231889,-2610.21405871,0.00019149,2]
[387782448,1758856231900,-213.31,0.00019161,2]
[387782449,1758856231912,-165.07,0.00019184,2]
[387782450,1758856231924,-157.34,0.0001932,2]
[387782451,1758856231935,-982.28166981,0.00019399,2]
[387782452,1758856231945,-167.46,0.00019501,2]
[387782453,1758856231956,-152.03862978,0.00019642,2]
[387782454,1758856231966,-10172.71977032,0.00019659,2]
[387782455,1758856231977,-247.24,0.00019693,2]
[387782456,1758856231987,-4760.84966117,0.000197,2]
[387782457,1758856231997,-668.08,0.00019744,2]
[387782458,1758856232007,-1644.85147,0.000198,2]
[387782459,1758856232016,-170.5665174,0.00019876,2]
[387782460,1758856232025,-216.83034529,0.00019888,2]
[387782461,1758856232034,-322.6107,0.00019888,2]
[387782462,1758856232044,-151.0,0.00019888,2]
[387782463,1758856232053,-151.0,0.00019888,2]
[387782464,1758856232062,-151.71374604,0.00019888,2]
[387782465,1758856232071,-500.0,0.00019888,2]
[387782466,1758856232083,-500.0,0.00019888,2]
[387782467,1758856232094,-500.0,0.00019888,2]
[387782468,1758856232105,-500.0,0.00019888,2]
[387782469,1758856232114,-500.0,0.00019888,2]
[387782470,1758856232123,-500.0,0.00019888,2]
[387782471,1758856232132,-39.65730446,0.00019888,2]
[387782472,1758856232153,-460.34269554,0.00019888,2]
[387782473,1758856232163,-500.0,0.00019888,2]
[387782474,1758856232172,-500.0,0.00019888,2]
[387782475,1758856232182,-500.0,0.00019888,2]
[387782476,1758856232191,-500.0,0.00019888,2]
[387782478,1758856232201,-2227.73147435,0.00019899,2]
[387782480,1758856239491,-500.0,0.00019144,2]
[387782481,1758856239501,-285.18363071,0.00019144,2]
[387782482,1758856239510,-2385.59082229,0.00019899,2]
[387782483,1758856239518,-962.40001388,0.00019899,2]
[387782484,1758856239528,-1000.0,0.000199,2]
[387782485,1758856239538,-3275.83723917,0.000199,2]
[387782486,1758856239550,-2650.11914248,0.000199,2]
[387782487,1758856239652,-3838.16651835,0.000199,2]
[387782488,1758856239662,-192.32231988,0.000199,2]
[387782489,1758856239672,-4218.57319761,0.000199,2]
[387782490,1758856239705,-405.07680239,0.000199,2]
[387782491,1758856239715,-1000.0,0.000199,2]
[387782492,1758856239726,-163.86,0.000199,3]
[387782493,1758856239736,-1088.19649384,0.000199,2]
[387782494,1758856239745,-709.87700927,0.000199,2]
[387782495,1758856239768,-453.90748416,0.000199,2]
[387782496,1758856239815,-2500.0,0.000199,2]
[387782571,1758856242762,-8796.36723976,0.000199,2]
[387782572,1758856242772,-2500.0,0.000199,2]
[387782573,1758856242782,-374.10158438,0.000199,2]
[387782574,1758856242791,-620.34575416,0.000199,2]
[387782575,1758856242801,-2453.5457674,0.000199,2]
[387782576,1758856242811,-1468.0,0.000199,3]
[387782577,1758856242820,-1007.0,0.000199,2]
[387782578,1758856242830,-3784.029,0.0001994,2]
[387782579,1758856242839,-165.644,0.0001994,2]
[387782580,1758856242848,-505.13545913,0.00019973,2]
[387782581,1758856242858,-500.0,0.00019973,2]
[387782582,1758856242867,-500.0,0.00019973,2]
[387782583,1758856242876,-500.0,0.00019973,2]
[387782584,1758856242886,-502.67086887,0.00019973,2]
[387782585,1758856242895,-503.16110492,0.00019973,2]
[387782586,1758856242904,-6600.3766883,0.00019986,2]
[387782587,1758856242914,-283.13465826,0.00019996,2]
[387782588,1758856242923,-1000.0,0.00019998,2]
[387782589,1758856242933,-642.79227559,0.00019999,2]
[387782590,1758856242942,-37555.50871048,0.00019999,2]
[387782591,1758856242952,-306.70279572,0.00019999,2]
[387782592,1758856242962,-150.0,0.00019999,2]
[387782593,1758856242972,-158.06805117,0.00019999,2]
[387782594,1758856242981,-150.0,0.00019999,2]
[387782595,1758856242994,-150.0,0.00019999,2]
[387782596,1758856243005,-1000.0,0.00019999,2]
[387782597,1758856243015,-150.0,0.00019999,2]
[387782598,1758856243025,-150.0,0.00019999,2]
[387782599,1758856243034,-150.0,0.00019999,2]
[387782600,1758856243043,-500.0,0.00019999,2]
[387782601,1758856243052,-150.0,0.00019999,2]
[387782602,1758856243062,-3630.0,0.00019999,2]
[387782604,1758856243071,-150.0,0.00019999,2]
[387782606,1758856243081,-500.0,0.00019999,2]
[387782608,1758856243090,-500.0,0.00019999,2]
[387782610,1758856243099,-150.0,0.00019999,2]
[387782611,1758856243108,-151.42179005,0.00019999,2]
[387782612,1758856243117,-500.0,0.00019999,2]
[387782613,1758856243126,-254.96365471,0.00019999,2]
[387782614,1758856243135,-153.02260752,0.00019999,2]
[387782615,1758856243145,-150.0,0.00019999,2]
[387782616,1758856243154,-1000.0,0.00019999,2]
[387782617,1758856243163,-500.0,0.00019999,2]
[387782619,1758856243172,-500.0,0.00019999,2]
[387782620,1758856243182,-500.0,0.00019999,2]
[387782621,1758856243192,-4186.0,0.0002,2]
[387782622,1758856243200,-138444.00017159,0.0002,2]
[387782623,1758856243254,-179.979,0.0002,2]
[387782624,1758856243657,-467.91699988,0.0002,2]
[387782625,1758856245569,-203.13588857,0.00019999,2]
[387782626,1758856245579,-1446.52029401,0.0002,2]
[387782627,1758856245624,-1118.0,0.0002,2]
[387782628,1758856245635,-2944.10315545,0.0002,2]
[387782635,1758856452353,-425.37,0.00018929,2]
[387782636,1758856459450,-400.0,0.00018929,2]
[387782637,1758856510499,-400.0,0.000189,2]
[387782638,1758856517978,-680.36,0.000189,2]
[387782639,1758856525072,-755.04,0.000189,2]
[387782640,1758856532524,-164.6,0.000189,2]
[387782641,1758856532561,-70.8,0.000189,2]
[387782642,1758856539979,-485.38,0.000189,2]
[387782643,1758856547137,-400.0,0.000189,2]
[387782644,1758856555295,-168.97973797,0.000189,2]
[387782645,1758856574036,-4603.75,0.00019,5]
[387782646,1758856581035,-904.9,0.00019,5]
[387782647,1758856582163,154.43,9.525e-05,2]
[387782648,1758856582377,154.43,0.00010205,2]
[387782649,1758856582592,154.43,0.00010885,2]
[387782650,1758856582814,154.43,0.00011566,2]
[387782651,1758856583031,154.43,0.00012246,2]
[387782652,1758856583260,154.43,0.00012926,2]
[387782653,1758856583677,154.43,0.00013607,2]
[387782654,1758856583897,154.43,0.00014287,2]
[387782655,1758856584105,154.43,0.00014967,2]
[387782656,1758856584317,154.43,0.00015648,2]
[387782657,1758856584522,154.43,0.00016328,2]
[387782658,1758856584728,82.21796722,0.00017008,2]
[387782659,1758856584752,72.21203278,0.00017008,2]
[387782660,1758856584945,154.43,0.00017689,2]
[387782661,1758856585164,154.43,0.00018369,2]
[387782662,1758856588069,-5.76026203,0.000189,2]
[387782663,1758856588097,-5.35,0.00019,5]
[387782664,1758856588148,-551.55947594,0.00019014,2]
[387782665,1758856780170,-660.1,0.0001901,3]
[387782667,1758856797342,306.3,0.00030137,120]
[387782668,1758856866580,-837.43,0.00018975,2]
[387782669,1758856875801,-360.77,0.0001897,2]
[387782670,1758856875840,-187.16,0.00018975,2]
[387782671,1758856882862,-150.0,0.0001897,7]
[387782672,1758856882911,-100.0,0.00018975,2]
[387782673,1758856890289,-400.0,0.00018975,2]
[387782674,1758856928648,-169.2,0.00018975,2]
[387782675,1758856928672,-61.6,0.00018975,2]
[387782676,1758856935666,-400.0,0.00018988,2]
[387782677,1758856942813,-400.0,0.00018988,2]
[387782678,1758856950110,-400.0,0.00018988,2]
[387782679,1758856957040,-400.0,0.00018988,2]
[387782680,1758856965382,-400.0,0.00018988,2]
[387782681,1758857103603,166.77904971,0.00018,2]
[387782682,1758857106976,150.0,0.00018,2]
[387782683,1758857113705,263.27747218,0.00018,2]
[387782684,1758857114762,-209.0996609,0.00018939,2]
[387782685,1758857125396,150.0,0.00018,2]
[387782686,1758857163605,1603.09567414,8e-05,2]
[387782687,1758857166140,-21.6603391,0.00018939,2]
[387782688,1758857166168,-156.6793218,0.00018967,2]
[387782689,1758857166204,-43.3206782,0.00018967,2]
[387782690,1758857173910,-32.08686649,0.00018988,2]
[387782691,1758857173948,-335.82626702,0.0001899,2]
[387782692,1758857181483,-400.0,0.0001899,2]
[387782693,1758857189347,-400.0,0.0001899,2]
[387782694,1758857196512,-400.0,0.0001899,2]
[387782695,1758857204558,-400.0,0.0001899,2]
[387782696,1758857211759,-400.0,0.0001899,2]
[387782697,1758857219649,-413.64032815,0.0001899,2]
[387782698,1758857226672,-547.67,0.0001899,2]
[387782699,1758857233687,-400.0,0.0001899,2]
[387782700,1758857240844,-400.0,0.0001899,2]
[387782701,1758857247683,-683.0,0.0001899,2]
[387782702,1758857254699,-400.0,0.0001899,2]
[387782703,1758857279181,-147.96949316,0.0001899,2]
[387782704,1758857279203,-167.2,0.00019,2]
[387782705,1758857279230,-5.9,0.0001901,3]
[387782706,1758857279252,-154.43,0.00019049,2]
[387782707,1758857279275,-1000.0,0.00019142,2]
[387782708,1758857279298,-9552.16786547,0.00019156,2]
[387782709,1758857279320,-2287.33,0.00019168,2]
[387782710,1758857279342,-9905.5980765,0.00019211,2]
[387782711,1758857279365,-719.93733987,0.00019266,2]
[387782712,1758857279388,-1070.99345605,0.00019499,2]
[387782713,1758857279411,-300.0,0.00019526,2]
[387782714,1758857279434,-302.0,0.00019527,2]
[387782715,1758857279455,-816.0,0.00019527,2]
[387782716,1758857279477,-1200.0,0.00019695,2]
[387782717,1758857279499,-151.37973208,0.00019755,2]
[387782718,1758857279520,-1370.70956,0.000198,2]
[387782719,1758857279542,-466.94087626,0.0001981,2]
[387782720,1758857279564,-7431.93018594,0.00019841,2]
[387782721,1758857279589,-7431.93018594,0.00019844,2]
[387782722,1758857279612,-24419.24018872,0.00019846,2]
[387782723,1758857279636,-245.67195703,0.00019848,2]
[387782724,1758857279660,-168.58738339,0.00019848,2]
[387782725,1758857279683,-168.58738339,0.00019849,2]
[387782726,1758857279706,-24419.24018872,0.0001985,2]
[387782727,1758857279728,-213.13909062,0.00019855,2]
[387782728,1758857279750,-168.58738339,0.00019856,2]
[387782729,1758857279772,-221.3655983,0.00019862,2]
[387782730,1758857279795,-7431.93018594,0.00019882,2]
[387782731,1758857279817,-217.43376168,0.00019884,2]
[387782732,1758857279840,-213.13909062,0.00019885,2]
[387782733,1758857279863,-230.76,0.00019886,2]
[387782734,1758857279886,-217.43376168,0.00019887,2]
[387782735,1758857279909,-213.13909062,0.00019888,2]
[387782736,1758857279932,-221.3655983,0.00019888,2]
[387782737,1758857279955,-221.3655983,0.00019895,2]
[387782738,1758857279978,-24419.24018872,0.00019896,2]
[387782739,1758857280000,-217.43376168,0.00019897,2]
[387782740,1758857280027,-500.0,0.00019898,2]
[387782741,1758857280052,-500.0,0.00019898,2]
[387782742,1758857280078,-500.0,0.00019898,2]
[387782743,1758857280103,-513.8710473,0.00019898,2]
[387782744,1758857280130,-500.0,0.00019898,2]
[387782745,1758857280155,-500.0,0.00019898,2]
[387782746,1758857280183,-500.0,0.00019898,2]
[387782747,1758857280210,-500.0,0.00019898,2]
[387782748,1758857280237,-500.0,0.00019898,2]
[387782749,1758857280261,-500.0,0.00019898,2]
[387782750,1758857280287,-500.0,0.00019898,2]
[387782751,1758857280312,-500.0,0.00019898,2]
[387782752,1758857280336,-500.0,0.00019898,2]
[387782753,1758857280360,-500.0,0.00019898,2]
[387782754,1758857280384,-500.0,0.00019898,2]
[387782755,1758857280407,-213.13909062,0.00019898,2]
[387782756,1758857280431,-1000.0,0.000199,2]
[387782757,1758857280453,-164.84770272,0.000199,2]
[387782758,1758857280480,-2500.0,0.000199,2]
[387782759,1758857280503,-2257.93200568,0.000199,2]
[387782760,1758857280524,-194.91819914,0.000199,3]
[387782761,1758857280547,-1681.57110196,0.000199,2]
[387782762,1758857280568,-7038.2152,0.000199,2]
[387782763,1758857280592,-1102.1491,0.000199,2]
[387782764,1758857280613,-957.3323,0.000199,2]
[387782765,1758857280635,-1370.70956,0.000199,2]
[387782766,1758857280658,-47586.8629,0.000199,2]
[387782767,1758857280680,-2717.79638727,0.000199,2]
[387782768,1758857280703,-339.62511115,0.000199,2]
[387782769,1758857280725,-629.60363112,0.000199,2]
[387782770,1758857280747,-723.7367132,0.000199,2]
[387782771,1758857280771,-213.13909062,0.00019903,2]
[387782772,1758857280795,-363.589863,0.00019909,2]
[387782773,1758857280818,-3015.0303859,0.00019909,2]
[387782774,1758857280841,-274.34113695,0.00019914,2]
[387782775,1758857280864,-151.0,0.00019914,2]
[387782776,1758857280888,-151.0,0.00019914,2]
[387782777,1758857280915,-151.0,0.00019914,2]
[387782778,1758857280939,-151.0,0.00019914,2]
[387782779,1758857280963,-151.0,0.00019914,2]
[387782780,1758857280986,-151.0,0.00019914,2]
[387782781,1758857281009,-151.0,0.00019914,2]
[387782782,1758857281033,-151.0,0.00019914,2]
[387782783,1758857281056,-151.0,0.00019914,2]
[387782784,1758857281079,-151.0,0.00019914,2]
[387782785,1758857281103,-151.0,0.00019914,2]
[387782786,1758857281127,-151.0,0.00019914,2]
[387782787,1758857281150,-500.0,0.00019914,2]
[387782788,1758857281173,-151.0,0.00019914,2]
[387782789,1758857281196,-572.20704038,0.00019914,2]
[387782790,1758857281219,-322.6107,0.00019914,2]
[387782791,1758857281242,-2915.66393279,0.00019916,2]
[387782792,1758857281403,-21264.5554919,0.00019918,2]
[387782793,1758857281426,-217.43376168,0.00019921,2]
[387782794,1758857281449,-221.3655983,0.00019923,2]
[387782795,1758857281472,-168.58738339,0.00019924,2]
[387782796,1758857281495,-24419.24018872,0.00019925,2]
[387782797,1758857281519,-168.58738339,0.00019926,2]
[387782798,1758857281541,-18580.8243201,0.00019926,2]
[387782799,1758857281564,-245.67195703,0.00019926,2]
[387782800,1758857281588,-221.3655983,0.00019928,2]
[387782801,1758857281610,-221.3655983,0.00019937,2]
[387782802,1758857281633,-7431.93018594,0.00019947,2]
[387782803,1758857281657,-24419.24018872,0.00019948,2]
[387782804,1758857281681,-168.58738339,0.00019953,2]
[387782805,1758857281703,-245.67195703,0.00019955,2]
[387782806,1758857281726,-221.3655983,0.00019958,2]
[387782807,1758857281748,-168.58738339,0.00019959,2]
[387782808,1758857281770,-245.67195703,0.00019964,2]
[387782809,1758857281792,-151.0,0.0001997,2]
[387782810,1758857281816,-24419.24018872,0.00019972,2]
[387782811,1758857281838,-213.13909062,0.00019973,2]
[387782812,1758857281860,-500.0,0.00019973,2]
[387782813,1758857281883,-500.0,0.00019973,2]
[387782814,1758857281906,-501.77896181,0.00019973,2]
[387782815,1758857281929,-500.0,0.00019973,2]
[387782816,1758857281951,-500.0,0.00019973,2]
[387782817,1758857281974,-165.644,0.00019975,2]
[387782818,1758857281998,-3027.223,0.00019975,2]
[387782819,1758857282021,-6011.4800047,0.00019976,2]
[387782820,1758857282044,-213.13909062,0.00019976,2]
[387782821,1758857282066,-952.82137193,0.0001998,2]
[387782822,1758857282088,-245.67195703,0.00019981,2]